fUST/lending_fUST_20250408
["ID","MTS","AMOUNT","RATE_DAILY","PERIOD"]
[357429775,1744063913354,-500.0,0.00024657,2]
[357429776,1744063913364,-500.0,0.00024657,2]
[357429777,1744063913374,-500.0,0.00024657,2]
[357429778,1744063913384,-500.0,0.00024657,2]
[357429779,1744063913394,-200.0,0.00024657,2]
[357429780,1744063913404,-631.76,0.00024657,2]
[357429781,1744063913414,-1866.81,0.00024657,2]
[357429782,1744063913424,-876.5,0.00024657,2]
[357429783,1744063913438,-500.0,0.00024657,2]
[357429784,1744063913448,-711.58,0.00024657,2]
[357429785,1744063913457,-775.52,0.00024657,2]
[357429786,1744063913467,-731.46,0.00024657,2]
[357429787,1744063913477,-500.0,0.00024657,2]
[357429788,1744063913487,-578.19,0.00024657,2]
[357429789,1744063913498,-1407.84,0.00024657,2]
[357429790,1744063913507,-535.62574384,0.00024657,2]
[357429791,1744063913517,-500.0,0.00024657,2]
[357429792,1744063913528,-500.0,0.00024657,2]
[357429793,1744063913537,-673.31,0.00024657,2]
[357429794,1744063913547,-860.82,0.00024657,2]
[357429795,1744063913557,-500.0,0.00024657,2]
[357429796,1744063913566,-584.63,0.00024657,2]
[357429797,1744063913577,-500.0,0.00024657,2]
[357429798,1744063913588,-875.61,0.00024657,2]
[357429799,1744063913598,-500.0,0.00024657,2]
[357429800,1744063913610,-500.0,0.00024657,2]
[357429801,1744063913620,-501.31,0.00024657,2]
[357429802,1744063913629,-500.0,0.00024657,2]
[357429803,1744063913639,-500.92746142,0.00024657,2]
[357429804,1744063913649,-1137.86,0.00024657,2]
[357429805,1744063913659,-724.96,0.00024657,2]
[357429806,1744063913668,-560.96,0.00024657,2]
[357429807,1744063913678,-500.0,0.00024657,2]
[357429808,1744063913688,-1851.71,0.00024657,2]
[357429809,1744063913697,-500.0,0.00024657,2]
[357429810,1744063913708,-500.0,0.00024657,2]
[357429811,1744063913718,-284.8805034,0.00024657,2]
[357429812,1744063913727,-992.11,0.00024657,2]
[357429813,1744063913738,-1076.39,0.00024657,2]
[357429814,1744063913748,-616.93,0.00024657,2]
[357429815,1744063913757,-532.68703645,0.00024657,2]
[357429816,1744063913768,-2026.48,0.00024657,2]
[357429817,1744063913777,-953.83,0.00024657,2]
[357429818,1744063913787,-500.0,0.00024657,2]
[357429819,1744063913797,-270.9,0.00024657,2]
[357429820,1744063913807,-500.0,0.00024657,2]
[357429821,1744063913817,-2969.41,0.00024657,2]
[357429822,1744063913828,-519.65,0.00024657,2]
[357429823,1744063913838,-2444.99,0.00024657,2]
[357429824,1744063913848,-159.57018995,0.00024657,2]
[357429825,1744063913858,-1097.58,0.00024657,2]
[357429826,1744063913868,-500.0,0.00024657,2]
[357429827,1744063913878,-976.7,0.00024657,2]
[357429828,1744063913888,-500.0,0.00024657,2]
[357429829,1744063913898,-1051.44,0.00024657,2]
[357429830,1744063913908,-500.0,0.00024657,2]
[357429831,1744063913917,-540.47,0.00024657,2]
[357429832,1744063913928,-543.21,0.00024657,2]
[357429833,1744063913938,-668.11,0.00024657,2]
[357429834,1744063913950,-853.08,0.00024657,2]
[357429835,1744063913961,-1262.71,0.00024657,2]
[357429836,1744063913970,-2569.27,0.00024657,2]
[357429837,1744063913980,-500.0,0.00024657,2]
[357429838,1744063913991,-1404.25474492,0.00024657,2]
[357429850,1744064877153,169.88686569,0.00016,2]
[357429882,1744065020429,-151.0,0.00020906,2]
[357429908,1744065038233,-198.5,0.00020906,2]
[357429909,1744065038244,-1263.2993846,0.00020907,2]
[357429910,1744065038255,-256.3555329,0.00020997,2]
[357429911,1744065038265,-500.0,0.00021156,2]
[357429912,1744065038275,-5008.249345,0.00021157,2]
[357429915,1744065038285,-451.42316096,0.0002128,2]
[357429917,1744065038295,-2206.89526344,0.0002163,2]
[357429918,1744065038305,-200.0,0.00021704,2]
[357429919,1744065038315,-202.82,0.00021707,3]
[357429920,1744065038325,-500.0,0.00021715,2]
[357429921,1744065038335,-366.82602673,0.00021716,2]
[357429922,1744065038345,-300.0,0.00021716,2]
[357429923,1744065038354,-300.0,0.00021716,2]
[357429924,1744065038364,-1030.01106152,0.00021717,2]
[357429925,1744065038378,-5287.25873226,0.00021717,2]
[357429958,1744065043324,-16494.68506442,0.00021717,2]
[357429975,1744065046389,-542.48,0.00021717,2]
[357429976,1744065046401,-441.8099972,0.00021717,2]
[357429978,1744065239699,-186.32,0.00021617,2]
[357429979,1744065254125,-196.2234246,0.00021616,2]
[357429983,1744065396206,-151.0,0.00021604,2]
[357429984,1744065396230,-151.0,0.00021604,2]
[357429985,1744065396254,-151.0,0.00021604,2]
[357429986,1744065396278,-1.2996,0.00021604,2]
[357429987,1744065424151,-149.7004,0.00021604,2]
[357429988,1744065424184,-15.2831011,0.00021604,2]
[357429989,1744065451780,-151.0,0.00021504,2]
[357429992,1744065507701,-196.39257658,0.00020615,2]
[357430086,1744066232524,-8355.65359852,0.00020615,2]
[357430087,1744066232536,-111.48704144,0.00021504,2]
[357430089,1744066232549,-300.0,0.00021514,2]
[357430091,1744066232561,-300.0,0.00021603,2]
[357430094,1744066232575,-151.0,0.00021604,2]
[357430096,1744066232588,-151.0,0.00021604,2]
[357430098,1744066232600,-286.7168989,0.00021604,2]
[357430100,1744066232612,-200.0,0.00021604,2]
[357430103,1744066232624,-36735.49168035,0.00021612,2]
[357430105,1744066232637,-500.0,0.00021612,2]
[357430107,1744066232650,-267.11450957,0.00021612,2]
[357430109,1744066232663,-500.0,0.00021612,2]
[357430111,1744066232677,-500.0,0.00021612,2]
[357430114,1744066232690,-500.0,0.00021612,2]
[357430116,1744066232703,-500.0,0.00021612,2]
[357430118,1744066232715,-500.0,0.00021612,2]
[357430120,1744066232726,-500.0,0.00021612,2]
[357430122,1744066232741,-500.0,0.00021612,2]
[357430124,1744066232752,-500.0,0.00021612,2]
[357430126,1744066232763,-500.0,0.00021612,2]
[357430128,1744066232774,-468.98122615,0.00021612,2]
[357430130,1744066232787,-500.0,0.00021612,2]
[357430133,1744066232799,-500.0,0.00021612,2]
[357430135,1744066232812,-500.0,0.00021612,2]
[357430137,1744066232827,-385.94370689,0.00021612,2]
[357430142,1744066232861,-114.05629311,0.00021612,2]
[357430144,1744066232872,-500.0,0.00021612,2]
[357430146,1744066232883,-566.87156373,0.00021612,2]
[357430148,1744066232898,-418.72816033,0.00021612,2]
[357430150,1744066232911,-500.0,0.00021612,2]
[357430152,1744066232923,-499.99999999,0.00021612,2]
[357430154,1744066232935,-3646.95489637,0.00021612,3]
[357430157,1744066232948,-583.16816078,0.00021612,2]
[357430159,1744066232960,-500.0,0.00021615,2]
[357430161,1744066232972,-2383.19841778,0.00021615,2]
[357430163,1744066232984,-256.77821871,0.00021616,2]
[357430165,1744066232997,-37022.29993012,0.00021617,2]
[357430209,1744066238437,-64000.08346945,0.00021617,2]
[357430213,1744066238470,-399.82719863,0.00021617,2]
[357430215,1744066238484,-268391.4694018,0.00021617,2]
[357430216,1744066238496,-500.0,0.00021673,2]
[357430217,1744066238508,-500.0,0.00021673,2]
[357430218,1744066238518,-500.0,0.00021673,2]
[357430219,1744066238527,-500.0,0.00021673,2]
[357430220,1744066238537,-500.0,0.00021673,2]
[357430221,1744066238547,-500.0,0.00021673,2]
[357430222,1744066238557,-500.0,0.00021673,2]
[357430223,1744066238566,-500.0,0.00021673,2]
[357430224,1744066238577,-500.0,0.00021673,2]
[357430225,1744066238587,-500.0,0.00021673,2]
[357430226,1744066238596,-500.0,0.00021673,2]
[357430227,1744066238606,-500.0,0.00021673,2]
[357430228,1744066238615,-500.0,0.00021673,2]
[357430229,1744066238625,-500.0,0.00021673,2]
[357430230,1744066238634,-500.0,0.00021673,2]
[357430231,1744066238644,-500.0,0.00021673,2]
[357430232,1744066238654,-500.0,0.00021673,2]
[357430233,1744066238663,-500.0,0.00021673,2]
[357430234,1744066238673,-500.0,0.00021673,2]
[357430235,1744066238683,-500.0,0.00021673,2]
[357430236,1744066238692,-500.0,0.00021673,2]
[357430237,1744066238702,-534.1295019,0.00021673,2]
[357430238,1744066238712,-500.0,0.00021673,2]
[357430239,1744066239098,-396.30029322,0.00021791,2]
[357430240,1744066239125,-532.66529184,0.00021917,2]
[357430241,1744066239145,-153.41894269,0.00021917,2]
[357430242,1744066239155,-500.0,0.00021917,2]
[357430243,1744066239165,-500.0,0.00021917,2]
[357430244,1744066239176,-500.0,0.00021917,2]
[357430245,1744066239186,-594.52,0.00021917,2]
[357430246,1744066239195,-500.0,0.00021917,2]
[357430247,1744066239205,-500.0,0.00021917,2]
[357430248,1744066239215,-500.0,0.00021917,2]
[357430249,1744066239225,-500.0,0.00021917,2]
[357430250,1744066239235,-500.0,0.00021917,2]
[357430251,1744066239245,-500.0,0.00021917,2]
[357430252,1744066239254,-500.0,0.00021917,2]
[357430253,1744066239263,-392.9015133,0.00021917,2]
[357430254,1744066239274,-500.0,0.00021917,2]
[357430255,1744066239284,-500.0,0.00021917,2]
[357430256,1744066239294,-500.0,0.00021917,2]
[357430257,1744066239304,-500.0,0.00021917,2]
[357430258,1744066239314,-500.0,0.00021917,2]
[357430259,1744066239324,-500.0,0.00021917,2]
[357430260,1744066239334,-500.0,0.00021917,2]
[357430261,1744066239344,-500.0,0.00021917,2]
[357430262,1744066239353,-519.3,0.00021917,2]
[357430263,1744066239363,-811.34,0.00021917,2]
[357430264,1744066239373,-500.0,0.00021917,2]
[357430265,1744066239383,-500.0,0.00021917,2]
[357430266,1744066239392,-500.0,0.00021917,2]
[357430267,1744066239401,-500.0,0.00021917,2]
[357430268,1744066239411,-500.0,0.00021917,2]
[357430269,1744066239420,-256.60748568,0.00021917,2]
[357430270,1744066239430,-500.0,0.00021917,2]
[357430271,1744066239440,-899.11,0.00021917,2]
[357430272,1744066239449,-419.32358035,0.00021917,2]
[357430273,1744066239458,-406.64075785,0.00021917,2]
[357430274,1744066239468,-500.0,0.00021917,2]
[357430275,1744066239478,-1456.61,0.00021917,2]
[357430276,1744066239489,-500.0,0.00021917,2]
[357430277,1744066239500,-500.0,0.00021917,2]
[357430278,1744066239510,-500.0,0.00021917,2]
[357430279,1744066239520,-500.0,0.00021917,2]
[357430280,1744066239529,-500.0,0.00021917,2]
[357430281,1744066239540,-500.0,0.00021917,2]
[357430282,1744066239550,-500.0,0.00021917,2]
[357430283,1744066239560,-500.0,0.00021917,2]
[357430284,1744066239570,-500.0,0.00021917,2]
[357430285,1744066239579,-500.0,0.00021917,2]
[357430286,1744066239589,-500.0,0.00021917,2]
[357430287,1744066239599,-500.0,0.00021917,2]
[357430288,1744066239608,-500.0,0.00021917,2]
[357430289,1744066239618,-500.0,0.00021917,2]
[357430290,1744066239628,-471.60439447,0.00021917,2]
[357430291,1744066239638,-500.0,0.00021917,2]
[357430292,1744066239648,-500.0,0.00021917,2]
[357430293,1744066239658,-580.73,0.00021917,2]
[357430294,1744066239667,-500.0,0.00021917,2]
[357430295,1744066239677,-500.0,0.00021917,2]
[357430296,1744066239686,-500.0,0.00021917,2]
[357430297,1744066239697,-500.0,0.00021917,2]
[357430298,1744066239707,-500.0,0.00021917,2]
[357430299,1744066239717,-557.86,0.00021917,2]
[357430300,1744066239727,-500.0,0.00021917,2]
[357430301,1744066239737,-820.86,0.00021917,2]
[357430302,1744066239748,-500.0,0.00021917,2]
[357430303,1744066239758,-500.0,0.00021917,2]
[357430304,1744066239768,-500.0,0.00021917,2]
[357430305,1744066239778,-762.58,0.00021917,2]
[357430306,1744066239788,-500.0,0.00021917,2]
[357430307,1744066239797,-500.0,0.00021917,2]
[357430308,1744066239807,-500.0,0.00021917,2]
[357430309,1744066239817,-500.0,0.00021917,2]
[357430310,1744066239827,-500.0,0.00021917,2]
[357430311,1744066239837,-500.0,0.00021917,2]
[357430312,1744066239847,-500.0,0.00021917,2]
[357430313,1744066239857,-500.0,0.00021917,2]
[357430314,1744066239867,-500.0,0.00021917,2]
[357430315,1744066239877,-500.0,0.00021917,2]
[357430316,1744066239887,-500.0,0.00021917,2]
[357430317,1744066239900,-500.0,0.00021917,2]
[357430318,1744066239909,-500.0,0.00021917,2]
[357430319,1744066239919,-500.0,0.00021917,2]
[357430320,1744066239930,-908.71,0.00021917,2]
[357430321,1744066239940,-500.0,0.00021917,2]
[357430322,1744066239950,-481.53185672,0.00021917,2]
[357430323,1744066239960,-500.0,0.00021917,2]
[357430324,1744066239971,-812.4,0.00021917,2]
[357430325,1744066239981,-500.0,0.00021917,2]
[357430326,1744066239991,-500.0,0.00021917,2]
[357430327,1744066240002,-500.0,0.00021917,2]
[357430328,1744066240012,-500.0,0.00021917,2]
[357430329,1744066240022,-583.04,0.00021917,2]
[357430330,1744066240032,-500.0,0.00021917,2]
[357430331,1744066240042,-500.0,0.00021917,2]
[357430332,1744066240052,-946.45,0.00021917,2]
[357430333,1744066240062,-1608.43,0.00021917,2]
[357430334,1744066240073,-500.0,0.00021917,2]
[357430335,1744066240083,-500.0,0.00021917,2]
[357430336,1744066240093,-529.04,0.00021917,2]
[357430338,1744066240103,-500.0,0.00021917,2]
[357430339,1744066240113,-634.85,0.00021917,2]
[357430341,1744066240122,-500.0,0.00021917,2]
[357430342,1744066240132,-500.0,0.00021917,2]
[357430343,1744066240142,-1391.69,0.00021917,2]
[357430345,1744066240151,-522.79,0.00021917,2]
[357430346,1744066240161,-500.0,0.00021917,2]
[357430347,1744066240171,-714.78,0.00021917,2]
[357430348,1744066240180,-500.0,0.00021917,2]
[357430349,1744066240190,-500.0,0.00021917,2]
[357430350,1744066240200,-1322.93,0.00021917,2]
[357430351,1744066240209,-526.52,0.00021917,2]
[357430352,1744066240219,-500.0,0.00021917,2]
[357430354,1744066240228,-500.0,0.00021917,2]
[357430355,1744066240238,-1003.01,0.00021917,2]
[357430356,1744066240250,-500.0,0.00021917,2]
[357430357,1744066240260,-500.0,0.00021917,2]
[357430359,1744066240270,-200.0,0.00021917,2]
[357430360,1744066240280,-1097.68,0.00021917,2]
[357430361,1744066240290,-653.61,0.00021917,2]
[357430362,1744066240299,-500.0,0.00021917,2]
[357430363,1744066240309,-500.0,0.00021917,2]
[357430364,1744066240319,-1590.53,0.00021917,2]
[357430365,1744066240329,-500.0,0.00021917,2]
[357430366,1744066240339,-683.97,0.00021917,2]
[357430367,1744066240349,-500.0,0.00021917,2]
[357430368,1744066240360,-500.0,0.00021917,2]
[357430369,1744066240370,-500.0,0.00021917,2]
[357430370,1744066240380,-547.11,0.00021917,2]
[357430371,1744066240390,-500.0,0.00021917,2]
[357430372,1744066240400,-500.0,0.00021917,2]
[357430373,1744066240410,-500.0,0.00021917,2]
[357430374,1744066240420,-500.0,0.00021917,2]
[357430375,1744066240430,-500.0,0.00021917,2]
[357430376,1744066240439,-500.0,0.00021917,2]
[357430377,1744066240449,-500.0,0.00021917,2]
[357430378,1744066240459,-1552.55,0.00021917,2]
[357430379,1744066240469,-569.53,0.00021917,2]
[357430380,1744066240479,-500.0,0.00021917,2]
[357430381,1744066240488,-500.0,0.00021917,2]
[357430382,1744066240499,-500.0,0.00021917,2]
[357430383,1744066240510,-500.0,0.00021917,2]
[357430384,1744066240521,-2143.85,0.00021917,2]
[357430385,1744066240531,-672.03,0.00021917,2]
[357430386,1744066240540,-500.0,0.00021917,2]
[357430387,1744066240551,-500.0,0.00021917,2]
[357430388,1744066240561,-1176.29,0.00021917,2]
[357430389,1744066240570,-500.0,0.00021917,2]
[357430390,1744066240580,-532.09,0.00021917,2]
[357430391,1744066240590,-500.0,0.00021917,2]
[357430392,1744066240600,-500.0,0.00021917,2]
[357430393,1744066240610,-500.0,0.00021917,2]
[357430394,1744066240619,-500.0,0.00021917,2]
[357430395,1744066240629,-831.19,0.00021917,2]
[357430396,1744066240639,-500.0,0.00021917,2]
[357430397,1744066240648,-365.90068017,0.00021917,2]
[357430398,1744066240658,-1769.76,0.00021917,2]
[357430399,1744066240668,-531.60392033,0.00021917,2]
[357430400,1744066240678,-500.0,0.00021917,2]
[357430401,1744066240688,-500.0,0.00021917,2]
[357430402,1744066240697,-539.61,0.00021917,2]
[357430403,1744066240707,-1062.71,0.00021917,2]
[357430404,1744066240717,-500.0,0.00021917,2]
[357430405,1744066240727,-500.0,0.00021917,2]
[357430406,1744066240736,-582.3,0.00021917,2]
[357430407,1744066240746,-500.0,0.00021917,2]
[357430408,1744066240755,-500.0,0.00021917,2]
[357430409,1744066240765,-500.0,0.00021917,2]
[357430410,1744066240775,-968.29,0.00021917,2]
[357430411,1744066240785,-500.0,0.00021917,2]
[357430412,1744066240795,-500.0,0.00021917,2]
[357430413,1744066240805,-500.0,0.00021917,2]
[357430414,1744066240816,-500.0,0.00021917,2]
[357430415,1744066240827,-500.0,0.00021917,2]
[357430416,1744066240836,-564.44,0.00021917,2]
[357430417,1744066240846,-500.0,0.00021917,2]
[357430418,1744066240856,-500.0,0.00021917,2]
[357430419,1744066240866,-500.0,0.00021917,2]
[357430420,1744066240881,-1613.95,0.00021917,2]
[357430421,1744066240891,-500.0,0.00021917,2]
[357430422,1744066240902,-2461.22,0.00021917,2]
[357430423,1744066240912,-500.0,0.00021917,2]
[357430424,1744066240923,-873.55,0.00021917,2]
[357430425,1744066240933,-500.0,0.00021917,2]
[357430426,1744066240943,-2674.77,0.00021917,2]
[357430427,1744066240953,-500.0,0.00021917,2]
[357430428,1744066240963,-500.0,0.00021917,2]
[357430429,1744066240973,-631.6,0.00021917,2]
[357430430,1744066240983,-1394.78,0.00021917,2]
[357430431,1744066240993,-500.0,0.00021917,2]
[357430432,1744066241003,-500.0,0.00021917,2]
[357430433,1744066241013,-500.0,0.00021917,2]
[357430434,1744066241023,-500.0,0.00021917,2]
[357430435,1744066241034,-671.63,0.00021917,2]
[357430436,1744066241044,-500.0,0.00021917,2]
[357430437,1744066241054,-500.0,0.00021917,2]
[357430438,1744066241065,-500.0,0.00021917,2]
[357430439,1744066241075,-522.49,0.00021917,2]
[357430440,1744066241084,-1447.86,0.00021917,2]
[357430441,1744066241094,-3581.51,0.00021917,2]
[357430442,1744066241104,-500.0,0.00021917,2]
[357430443,1744066241114,-500.0,0.00021917,2]
[357430444,1744066241123,-500.0,0.00021917,2]
[357430445,1744066241133,-523.75,0.00021917,2]
[357430446,1744066241143,-237.04056397,0.00021917,2]
[357430447,1744066241154,-6741.73,0.00021917,2]
[357430448,1744066241164,-500.0,0.00021917,2]
[357430449,1744066241174,-2777.14,0.00021917,2]
[357430450,1744066241183,-1349.66,0.00021917,2]
[357430451,1744066241193,-1293.9,0.00021917,2]
[357430452,1744066241203,-2029.31,0.00021917,2]
[357430453,1744066241213,-500.0,0.00021917,2]
[357430454,1744066241223,-576.67,0.00021917,2]
[357430455,1744066241233,-200.0,0.00021917,2]
[357430456,1744066241243,-1982.66,0.00021917,2]
[357430457,1744066241253,-500.0,0.00021917,2]
[357430458,1744066241263,-500.0,0.00021917,2]
[357430459,1744066241273,-537.39,0.00021917,2]
[357430460,1744066241282,-500.0,0.00021917,2]
[357430461,1744066241292,-500.0,0.00021917,2]
[357430462,1744066241302,-500.0,0.00021917,2]
[357430463,1744066241312,-500.0,0.00021917,2]
[357430464,1744066241322,-509.12,0.00021917,2]
[357430465,1744066241332,-500.0,0.00021917,2]
[357430466,1744066241341,-500.0,0.00021917,2]
[357430467,1744066241351,-2790.26,0.00021917,2]
[357430468,1744066241361,-209.80321001,0.00021917,2]
[357430469,1744066241370,-500.0,0.00021917,2]
[357430470,1744066241380,-623.33,0.00021917,2]
[357430471,1744066241390,-500.0,0.00021917,2]
[357430472,1744066241399,-500.0,0.00021917,2]
[357430473,1744066241409,-2184.29,0.00021917,2]
[357430474,1744066241419,-957.01,0.00021917,2]
[357430475,1744066241428,-500.0,0.00021917,2]
[357430476,1744066241439,-1926.98,0.00021917,2]
[357430477,1744066241449,-500.0,0.00021917,2]
[357430478,1744066241459,-500.0,0.00021917,2]
[357430479,1744066241469,-500.0,0.00021917,2]
[357430480,1744066241479,-756.45,0.00021917,2]
[357430481,1744066241489,-2175.04,0.00021917,2]
[357430482,1744066241499,-500.0,0.00021917,2]
[357430483,1744066241510,-500.0,0.00021917,2]
[357430484,1744066241519,-500.0,0.00021917,2]
[357430485,1744066241529,-3830.55,0.00021917,2]
[357430486,1744066241539,-538.22,0.00021917,2]
[357430487,1744066241548,-1744.2,0.00021917,2]
[357430488,1744066241558,-1489.78,0.00021917,2]
[357430489,1744066241568,-500.0,0.00021917,2]
[357430491,1744066241577,-1219.67,0.00021917,2]
[357430492,1744066241592,-514.53,0.00021917,2]
[357430494,1744066241602,-1336.49,0.00021917,2]
[357430495,1744066241611,-500.0,0.00021917,2]
[357430496,1744066241621,-1384.16,0.00021917,2]
[357430497,1744066241630,-500.0,0.00021917,2]
[357430498,1744066241640,-500.0,0.00021917,2]
[357430499,1744066241650,-500.0,0.00021917,2]
[357430500,1744066241660,-553.35,0.00021917,2]
[357430501,1744066241670,-929.62,0.00021917,2]
[357430502,1744066241679,-500.0,0.00021917,2]
[357430504,1744066241689,-500.0,0.00021917,2]
[357430505,1744066241699,-1147.47,0.00021917,2]
[357430506,1744066241709,-500.0,0.00021917,2]
[357430507,1744066241719,-500.0,0.00021917,2]
[357430508,1744066241729,-500.0,0.00021917,2]
[357430509,1744066241739,-544.01,0.00021917,2]
[357430510,1744066241749,-500.0,0.00021917,2]
[357430511,1744066241759,-500.0,0.00021917,2]
[357430513,1744066241769,-500.0,0.00021917,2]
[357430514,1744066241779,-208.10056394,0.00021917,2]
[357430515,1744066241788,-1011.19,0.00021917,2]
[357430516,1744066241798,-192.99163282,0.00021917,2]
[357430517,1744066241808,-500.0,0.00021917,2]
[357430518,1744066241818,-3017.52,0.00021917,2]
[357430519,1744066241828,-500.0,0.00021917,2]
[357430520,1744066241838,-516.66,0.00021917,2]
[357430521,1744066241847,-500.0,0.00021917,2]
[357430522,1744066241858,-500.0,0.00021917,2]
[357430524,1744066241868,-952.54,0.00021917,2]
[357430525,1744066241879,-500.0,0.00021917,2]
[357430526,1744066241889,-500.0,0.00021917,2]
[357430527,1744066241901,-1324.37,0.00021917,2]
[357430528,1744066241911,-500.0,0.00021917,2]
[357430529,1744066241922,-500.0,0.00021917,2]
[357430530,1744066241932,-500.0,0.00021917,2]
[357430531,1744066241944,-692.85,0.00021917,2]
[357430532,1744066241955,-500.0,0.00021917,2]
[357430533,1744066241966,-500.0,0.00021917,2]
[357430534,1744066241976,-2490.71,0.00021917,2]
[357430535,1744066241987,-500.0,0.00021917,2]
[357430536,1744066241996,-521.13,0.00021917,2]
[357430537,1744066242007,-662.95,0.00021917,2]
[357430538,1744066242016,-500.0,0.00021917,2]
[357430539,1744066242026,-513.59,0.00021917,2]
[357430540,1744066242036,-10864.56,0.00021917,2]
[357430541,1744066242046,-500.0,0.00021917,2]
[357430542,1744066242056,-500.0,0.00021917,2]
[357430543,1744066242066,-500.0,0.00021917,2]
[357430544,1744066242076,-152.0,0.00021925,2]
[357430545,1744066242086,-641.3390787,0.00022173,2]
[357430546,1744066242096,-500.0,0.00022173,2]
[357430547,1744066242106,-500.0,0.00022173,2]
[357430548,1744066242116,-500.0,0.00022173,2]
[357430549,1744066242126,-493.61646666,0.00022173,2]
[357430550,1744066242137,-501.15011784,0.00022173,2]
[357430551,1744066242147,-182.28058582,0.00022173,2]
[357430552,1744066242158,-500.0,0.00022173,2]
[357430553,1744066242168,-500.0,0.00022173,2]
[357430554,1744066242178,-500.0,0.00022173,2]
[357430555,1744066242187,-501.46052507,0.00022173,2]
[357430556,1744066242197,-501.01755725,0.00022173,2]
[357430557,1744066242207,-500.0,0.00022173,2]
[357430558,1744066242217,-500.0,0.00022173,2]
[357430559,1744066242227,-500.0,0.00022173,2]
[357430560,1744066242237,-500.0,0.00022173,2]
[357430561,1744066242251,-613.63380038,0.00022173,2]
[357430562,1744066242262,-500.0,0.00022173,2]
[357430563,1744066242272,-301.61256696,0.00022173,2]
[357430564,1744066242282,-501.59857376,0.00022173,2]
[357430565,1744066242292,-160.0,0.00022183,7]
[357430566,1744066242303,-160.0,0.00022183,7]
[357430567,1744066242312,-12527.9349248,0.00022183,7]
[357430568,1744066242323,-783.73948285,0.00022183,7]
[357430569,1744066242612,-500.0,0.00022191,2]
[357430570,1744066242626,-500.0,0.00022191,2]
[357430571,1744066242637,-500.0,0.00022191,2]
[357430572,1744066242648,-594.52,0.00022191,2]
[357430573,1744066242658,-500.0,0.00022191,2]
[357430574,1744066242668,-500.0,0.00022191,2]
[357430575,1744066242679,-500.0,0.00022191,2]
[357430576,1744066242689,-500.0,0.00022191,2]
[357430577,1744066242700,-500.0,0.00022191,2]
[357430578,1744066242710,-500.0,0.00022191,2]
[357430579,1744066242721,-500.0,0.00022191,2]
[357430580,1744066242731,-500.0,0.00022191,2]
[357430581,1744066242741,-540.43190331,0.00022191,2]
[357430583,1744066242752,-500.0,0.00022191,2]
[357430584,1744066242762,-500.0,0.00022191,2]
[357430586,1744066242772,-500.0,0.00022191,2]
[357430587,1744066242782,-500.0,0.00022191,2]
[357430588,1744066242791,-500.0,0.00022191,2]
[357430589,1744066242800,-500.0,0.00022191,2]
[357430590,1744066242810,-519.3,0.00022191,2]
[357430591,1744066242820,-811.34,0.00022191,2]
[357430592,1744066242830,-500.0,0.00022191,2]
[357430593,1744066242840,-500.0,0.00022191,2]